[Event "Late-Titled-Tuesday-Blitz-January-23-2024"]
[Site "Chess.com"]
[Date "2024.01.23"]
[Round "1"]
[White "underthebridge1999"]
[Black "AradNazari"]
[Result "1-0"]
[WhiteElo "2367"]
[BlackElo "2609"]
[TimeControl "180+1"]
[EndTime "14:07:53 PST"]
[Termination "underthebridge1999 won by resignation"]

1. e4 {[%clk 0:02:49.5]} 1... a6 {[%clk 0:02:51.2]} 2. d4 {[%clk 0:02:47.1]}
2... d6 {[%clk 0:02:46.7]} 3. Nc3 {[%clk 0:02:45.9]} 3... Nf6 {[%clk 0:02:44.2]}
4. Bc4 {[%clk 0:02:45.8]} 4... Nc6 {[%clk 0:02:44.3]} 5. Nf3 {[%clk 0:02:45.8]}
5... b5 {[%clk 0:02:44.1]} 6. Bb3 {[%clk 0:02:44.6]} 6... Na5 {[%clk 0:02:43.4]}
7. e5 {[%clk 0:02:37.3]} 7... dxe5 {[%clk 0:02:43]} 8. Nxe5 {[%clk 0:02:37.3]}
8... Nxb3 {[%clk 0:02:43.1]} 9. axb3 {[%clk 0:02:38.2]} 9... Bb7 {[%clk
0:02:42.4]} 10. O-O {[%clk 0:02:37.8]} 10... e6 {[%clk 0:02:43]} 11. Bg5 {[%clk
0:02:35.4]} 11... Be7 {[%clk 0:02:43.6]} 12. Qe2 {[%clk 0:02:34.6]} 12... O-O
{[%clk 0:02:42.9]} 13. Rad1 {[%clk 0:02:35.2]} 13... h6 {[%clk 0:02:41.8]} 14.
Bh4 {[%clk 0:02:34.5]} 14... Nd5 {[%clk 0:02:40.3]} 15. Bxe7 {[%clk 0:02:29.4]}
15... Qxe7 {[%clk 0:02:40.4]} 16. Nxd5 {[%clk 0:02:28.9]} 16... Bxd5 {[%clk
0:02:41.3]} 17. c4 {[%clk 0:02:29]} 17... Bb7 {[%clk 0:02:38.7]} 18. f4 {[%clk
0:02:27.1]} 18... Qb4 {[%clk 0:02:34.6]} 19. c5 {[%clk 0:02:22.9]} 19... Bd5
{[%clk 0:02:28.4]} 20. Rd3 {[%clk 0:02:17.3]} 20... f6 {[%clk 0:02:18]} 21. Ng6
{[%clk 0:02:10.6]} 21... Rf7 {[%clk 0:02:17.7]} 22. Qe3 {[%clk 0:02:04]} 22...
a5 {[%clk 0:02:09.7]} 23. h4 {[%clk 0:01:57.2]} 23... a4 {[%clk 0:02:08.2]} 24.
Re1 {[%clk 0:01:45.3]} 24... axb3 {[%clk 0:02:01.9]} 25. h5 {[%clk 0:01:45.3]}
25... f5 {[%clk 0:01:26.7]} 26. Rc3 {[%clk 0:01:32.4]} 26... Rd8 {[%clk
0:01:24.5]} 27. Ra1 {[%clk 0:01:30.1]} 27... Kh7 {[%clk 0:01:12.3]} 28. Ne5
{[%clk 0:01:28.6]} 28... Rf6 {[%clk 0:01:10.3]} 29. Nd3 {[%clk 0:01:28.8]} 29...
Qa4 {[%clk 0:00:49.4]} 30. Rxa4 {[%clk 0:01:28]} 30... bxa4 {[%clk 0:00:50.3]}
31. Qe5 {[%clk 0:01:23]} 31... Rf7 {[%clk 0:00:47.8]} 32. Nb4 {[%clk 0:01:21]}
32... a3 {[%clk 0:00:45.1]} 33. bxa3 {[%clk 0:01:20.3]} 33... b2 {[%clk
0:00:45.2]} 34. Qe1 {[%clk 0:01:17.6]} 34... Be4 {[%clk 0:00:43.5]} 35. Rb3
{[%clk 0:01:07.1]} 35... b1=Q {[%clk 0:00:43.8]} 36. Rxb1 {[%clk 0:01:06.7]}
36... Bxb1 {[%clk 0:00:44.7]} 37. Nc6 {[%clk 0:01:00]} 37... Ra8 {[%clk
0:00:37]} 38. Qxb1 {[%clk 0:00:49.2]} 38... Rxa3 {[%clk 0:00:37]} 39. Qe1 {[%clk
0:00:47.6]} 39... Ra6 {[%clk 0:00:29.3]} 40. Qxe6 {[%clk 0:00:46.9]} 40... Rf6
{[%clk 0:00:29.4]} 41. Qe7 {[%clk 0:00:35.9]} 41... Rfxc6 {[%clk 0:00:27.8]} 42.
d5 {[%clk 0:00:36.1]} 42... Ra1+ {[%clk 0:00:28.1]} 43. Kh2 {[%clk 0:00:35.2]}
43... Rca6 {[%clk 0:00:28.7]} 44. Qxc7 {[%clk 0:00:34.3]} 44... Rd1 {[%clk
0:00:23]} 45. d6 {[%clk 0:00:29.6]} 45... Raa1 {[%clk 0:00:20.8]} 46. Qf7 {[%clk
0:00:25.6]} 46... Rh1+ {[%clk 0:00:21.2]} 47. Kg3 {[%clk 0:00:25.9]} 47... Ra3+
{[%clk 0:00:21.8]} 48. Kf2 {[%clk 0:00:26.4]} 48... Rc1 {[%clk 0:00:14.9]} 49.
Qxf5+ {[%clk 0:00:24.4]} 49... Kh8 {[%clk 0:00:15.5]} 50. d7 {[%clk 0:00:23.8]}
50... Ra2+ {[%clk 0:00:13.6]} 51. Kg3 {[%clk 0:00:23.2]} 51... Rd1 {[%clk
0:00:11]} 52. Qf8+ {[%clk 0:00:19.9]} 52... Kh7 {[%clk 0:00:11.6]} 53. d8=Q
{[%clk 0:00:20]} 53... Ra3+ {[%clk 0:00:12.3]} 54. Kh2 {[%clk 0:00:19.4]} 54...
Rxd8 {[%clk 0:00:12.9]} 1-0

[Event "Late-Titled-Tuesday-Blitz-January-23-2024"]
[Site "Chess.com"]
[Date "2024.01.23"]
[Round "1"]
[White "Road2GM3000"]
[Black "IlanSchnaider"]
[Result "1-0"]
[WhiteElo "2450"]
[BlackElo "2753"]
[TimeControl "180+1"]
[EndTime "14:07:55 PST"]
[Termination "Road2GM3000 won by checkmate"]

1. d4 {[%clk 0:03:00.9]} 1... Nf6 {[%clk 0:02:55.7]} 2. c4 {[%clk 0:03:00.3]}
2... g6 {[%clk 0:02:54.8]} 3. Nc3 {[%clk 0:03:00.9]} 3... d5 {[%clk 0:02:55.2]}
4. Bg5 {[%clk 0:03:00]} 4... Ne4 {[%clk 0:02:54.8]} 5. Bh4 {[%clk 0:02:59.1]}
5... Nxc3 {[%clk 0:02:54.3]} 6. bxc3 {[%clk 0:03:00]} 6... dxc4 {[%clk
0:02:54.9]} 7. e3 {[%clk 0:03:00.4]} 7... c5 {[%clk 0:02:55.5]} 8. Bxc4 {[%clk
0:03:00.2]} 8... Bg7 {[%clk 0:02:56.1]} 9. Nf3 {[%clk 0:03:00.1]} 9... O-O
{[%clk 0:02:56.4]} 10. O-O {[%clk 0:03:00.7]} 10... b6 {[%clk 0:02:54.7]} 11.
dxc5 {[%clk 0:02:51.5]} 11... Qc7 {[%clk 0:02:28.5]} 12. Bd5 {[%clk 0:02:23.7]}
12... Bb7 {[%clk 0:02:28.2]} 13. Bg3 {[%clk 0:01:57]} 13... Qc8 {[%clk
0:02:27.2]} 14. cxb6 {[%clk 0:01:50.3]} 14... axb6 {[%clk 0:02:27.5]} 15. Bxb7
{[%clk 0:01:47.2]} 15... Qxb7 {[%clk 0:02:28.4]} 16. Qb3 {[%clk 0:01:44.6]}
16... Nd7 {[%clk 0:02:25.5]} 17. Rab1 {[%clk 0:01:42.8]} 17... Ra6 {[%clk
0:02:21.3]} 18. c4 {[%clk 0:01:37.6]} 18... e6 {[%clk 0:02:20.2]} 19. Rfd1
{[%clk 0:01:24.2]} 19... Rfa8 {[%clk 0:02:19]} 20. Qb5 {[%clk 0:01:22.6]} 20...
Nf6 {[%clk 0:02:04.7]} 21. c5 {[%clk 0:01:20.5]} 21... Ne4 {[%clk 0:02:04.4]}
22. c6 {[%clk 0:01:18.3]} 22... Qc8 {[%clk 0:02:01.8]} 23. c7 {[%clk 0:01:10.4]}
23... Bf6 {[%clk 0:01:38.8]} 24. Be5 {[%clk 0:00:57.1]} 24... Be7 {[%clk
0:01:07.7]} 25. Qd7 {[%clk 0:00:38.9]} 25... Qf8 {[%clk 0:00:35.1]} 26. Rbc1
{[%clk 0:00:29.2]} 26... Nc5 {[%clk 0:00:28.3]} 27. Qc6 {[%clk 0:00:22.7]} 27...
Rc8 {[%clk 0:00:24.1]} 28. h3 {[%clk 0:00:19.5]} 28... f6 {[%clk 0:00:14]} 29.
Bg3 {[%clk 0:00:18.9]} 29... Kf7 {[%clk 0:00:13.4]} 30. Nd4 {[%clk 0:00:19]}
30... e5 {[%clk 0:00:08.2]} 31. Nb5 {[%clk 0:00:19.1]} 31... Kg7 {[%clk
0:00:06.3]} 32. Nd6 {[%clk 0:00:18.3]} 32... Bxd6 {[%clk 0:00:05.9]} 33. Rxd6
{[%clk 0:00:19.2]} 33... Ra7 {[%clk 0:00:05.1]} 34. Qxb6 {[%clk 0:00:12]} 34...
Raxc7 {[%clk 0:00:05.5]} 35. Rcd1 {[%clk 0:00:08.5]} 35... Qf7 {[%clk
0:00:03.7]} 36. Qb4 {[%clk 0:00:07.2]} 36... Ne4 {[%clk 0:00:02.9]} 37. Qxe4
{[%clk 0:00:07]} 37... Rc4 {[%clk 0:00:03.1]} 38. Qd3 {[%clk 0:00:07.2]} 38...
Rc3 {[%clk 0:00:02.4]} 39. Qe2 {[%clk 0:00:06.7]} 39... R3c7 {[%clk 0:00:02.4]}
40. Qg4 {[%clk 0:00:06.9]} 40... f5 {[%clk 0:00:02.1]} 41. Bxe5+ {[%clk
0:00:07.2]} 41... Kg8 {[%clk 0:00:02.5]} 42. Rd8+ {[%clk 0:00:07.4]} 42... Rxd8
{[%clk 0:00:01.8]} 43. Rxd8+ {[%clk 0:00:08.3]} 43... Qf8 {[%clk 0:00:02.7]} 44.
Rxf8+ {[%clk 0:00:08.6]} 44... Kxf8 {[%clk 0:00:03.6]} 45. Bxc7 {[%clk
0:00:08.6]} 45... fxg4 {[%clk 0:00:04.3]} 46. hxg4 {[%clk 0:00:09.5]} 46... h5
{[%clk 0:00:04.6]} 47. gxh5 {[%clk 0:00:09.9]} 47... gxh5 {[%clk 0:00:05.5]} 48.
Kh2 {[%clk 0:00:10]} 48... h4 {[%clk 0:00:06.4]} 49. Kh3 {[%clk 0:00:10.6]}
49... Ke7 {[%clk 0:00:07.3]} 50. Kxh4 {[%clk 0:00:11.1]} 50... Kd7 {[%clk
0:00:08.2]} 51. Bf4 {[%clk 0:00:11]} 51... Kc6 {[%clk 0:00:09.1]} 52. g4 {[%clk
0:00:11.7]} 52... Kd5 {[%clk 0:00:10]} 53. g5 {[%clk 0:00:12.6]} 53... Ke6
{[%clk 0:00:10.7]} 54. Kh5 {[%clk 0:00:13.3]} 54... Kf7 {[%clk 0:00:11.6]} 55.
g6+ {[%clk 0:00:14]} 55... Kg8 {[%clk 0:00:12.5]} 56. Kg5 {[%clk 0:00:14.7]}
56... Kh8 {[%clk 0:00:13.2]} 57. a3 {[%clk 0:00:15]} 57... Kg8 {[%clk
0:00:14.1]} 58. a4 {[%clk 0:00:15.9]} 58... Kg7 {[%clk 0:00:14.8]} 59. a5 {[%clk
0:00:16.8]} 59... Kg8 {[%clk 0:00:15.5]} 60. a6 {[%clk 0:00:17.7]} 60... Kg7
{[%clk 0:00:16.4]} 61. a7 {[%clk 0:00:18.5]} 61... Kf8 {[%clk 0:00:17.1]} 62.
a8=Q+ {[%clk 0:00:19.1]} 62... Kg7 {[%clk 0:00:17.7]} 63. Qa7+ {[%clk
0:00:19.6]} 63... Kf8 {[%clk 0:00:18.5]} 64. Kf6 {[%clk 0:00:20]} 64... Ke8
{[%clk 0:00:18.8]} 65. Qe7# {[%clk 0:00:20]} 1-0

[Event "Late-Titled-Tuesday-Blitz-January-23-2024"]
[Site "Chess.com"]
[Date "2024.01.23"]
[Round "1"]
[White "JackRodgers"]
[Black "SEBAZZANO"]
[Result "1-0"]
[WhiteElo "2576"]
[BlackElo "2212"]
[TimeControl "180+1"]
[EndTime "14:07:55 PST"]
[Termination "JackRodgers won on time"]

1. d4 {[%clk 0:03:00.9]} 1... Nf6 {[%clk 0:02:58.6]} 2. Bg5 {[%clk 0:03:00.5]}
2... Ne4 {[%clk 0:02:57.7]} 3. h4 {[%clk 0:02:59.2]} 3... d5 {[%clk 0:02:53.6]}
4. Nd2 {[%clk 0:02:56.3]} 4... Nxd2 {[%clk 0:02:46.9]} 5. Bxd2 {[%clk
0:02:55.5]} 5... e6 {[%clk 0:02:40.6]} 6. e3 {[%clk 0:02:53.8]} 6... c5 {[%clk
0:02:39.1]} 7. dxc5 {[%clk 0:02:46.8]} 7... Bxc5 {[%clk 0:02:37.7]} 8. Bc3
{[%clk 0:02:47.4]} 8... O-O {[%clk 0:02:29.1]} 9. Bd3 {[%clk 0:02:46.7]} 9...
Nc6 {[%clk 0:02:12]} 10. Nf3 {[%clk 0:02:40.5]} 10... Bb4 {[%clk 0:01:59.4]} 11.
Bxh7+ {[%clk 0:02:26.6]} 11... Kxh7 {[%clk 0:01:40.8]} 12. Ng5+ {[%clk
0:02:26.4]} 12... Kg6 {[%clk 0:01:20.3]} 13. Qg4 {[%clk 0:02:10.5]} 13... Bxc3+
{[%clk 0:01:18.4]} 14. bxc3 {[%clk 0:02:10.3]} 14... f5 {[%clk 0:01:05.4]} 15.
Qg3 {[%clk 0:02:04.6]} 15... Kh6 {[%clk 0:01:03.7]} 16. O-O {[%clk 0:01:44.5]}
16... Qf6 {[%clk 0:00:59.7]} 17. Rab1 {[%clk 0:01:28.7]} 17... f4 {[%clk
0:00:53.8]} 18. exf4 {[%clk 0:01:15.6]} 18... Qxf4 {[%clk 0:00:54.7]} 19. Qd3
{[%clk 0:01:14.1]} 19... Qf5 {[%clk 0:00:46.6]} 20. Qd2 {[%clk 0:01:04.7]} 20...
Qf4 {[%clk 0:00:44.1]} 21. Qd3 {[%clk 0:01:04.8]} 21... Qf5 {[%clk 0:00:44]} 22.
Qe3 {[%clk 0:01:04.5]} 22... Qf4 {[%clk 0:00:43.7]} 23. Qc5 {[%clk 0:00:51.9]}
23... Ne5 {[%clk 0:00:22.5]} 24. Nh3 {[%clk 0:00:45.6]} 24... Qf5 {[%clk
0:00:18]} 25. Rfe1 {[%clk 0:00:40.4]} 25... b6 {[%clk 0:00:17.6]} 26. Qe3+
{[%clk 0:00:40.1]} 26... Kh7 {[%clk 0:00:14.5]} 27. Ng5+ {[%clk 0:00:39.2]}
27... Kg8 {[%clk 0:00:13.2]} 28. Qxe5 {[%clk 0:00:38.5]} 28... Qxe5 {[%clk
0:00:13.4]} 29. Rxe5 {[%clk 0:00:39.4]} 29... Re8 {[%clk 0:00:13.3]} 30. Rbe1
{[%clk 0:00:39.1]} 30... Bd7 {[%clk 0:00:13.3]} 31. Nxe6 {[%clk 0:00:39.1]}
31... Bxe6 {[%clk 0:00:13.4]} 32. Rxe6 {[%clk 0:00:40]} 32... Rxe6 {[%clk
0:00:13.5]} 33. Rxe6 {[%clk 0:00:40.9]} 33... Rc8 {[%clk 0:00:12.1]} 34. Re7
{[%clk 0:00:25.4]} 34... Rxc3 {[%clk 0:00:11.2]} 35. Rxa7 {[%clk 0:00:25.6]}
35... Rxc2 {[%clk 0:00:11.3]} 36. a4 {[%clk 0:00:24.1]} 36... d4 {[%clk
0:00:10.5]} 37. Rd7 {[%clk 0:00:24.3]} 37... Ra2 {[%clk 0:00:09.1]} 38. Rxd4
{[%clk 0:00:23.3]} 38... Kf7 {[%clk 0:00:07.2]} 39. g3 {[%clk 0:00:23]} 39...
Kf6 {[%clk 0:00:07.2]} 40. Rb4 {[%clk 0:00:23.6]} 40... Ke5 {[%clk 0:00:06.3]}
41. Rxb6 {[%clk 0:00:22.4]} 41... Rxa4 {[%clk 0:00:05.6]} 42. Rg6 {[%clk
0:00:23]} 42... Ra7 {[%clk 0:00:04.4]} 43. Kg2 {[%clk 0:00:23.5]} 43... Kf5
{[%clk 0:00:04.8]} 44. h5 {[%clk 0:00:22.7]} 44... Re7 {[%clk 0:00:03.3]} 45.
g4+ {[%clk 0:00:22.9]} 45... Kf4 {[%clk 0:00:03]} 46. Kh3 {[%clk 0:00:18.4]}
46... Kf3 {[%clk 0:00:02.4]} 47. Kh4 {[%clk 0:00:17.5]} 47... Kxf2 {[%clk
0:00:02.3]} 48. g5 {[%clk 0:00:16.7]} 48... Re4+ {[%clk 0:00:01.9]} 49. Kh3
{[%clk 0:00:16.5]} 49... Re3+ {[%clk 0:00:02]} 50. Kh2 {[%clk 0:00:15.8]} 1-0

[Event "Late-Titled-Tuesday-Blitz-January-23-2024"]
[Site "Chess.com"]
[Date "2024.01.23"]
[Round "1"]
[White "GMFYHR1"]
[Black "ContrVersia"]
[Result "0-1"]
[WhiteElo "2462"]
[BlackElo "2857"]
[TimeControl "180+1"]
[EndTime "14:07:59 PST"]
[Termination "ContrVersia won by resignation"]

1. d4 {[%clk 0:02:59.4]} 1... Nf6 {[%clk 0:02:57.6]} 2. c4 {[%clk 0:02:59.2]}
2... c5 {[%clk 0:02:51.5]} 3. e3 {[%clk 0:02:56.4]} 3... g6 {[%clk 0:02:50.7]}
4. Nf3 {[%clk 0:02:56.1]} 4... Bg7 {[%clk 0:02:50.4]} 5. Nc3 {[%clk 0:02:56.1]}
5... O-O {[%clk 0:02:50.2]} 6. Bd3 {[%clk 0:02:56]} 6... cxd4 {[%clk 0:02:50]}
7. exd4 {[%clk 0:02:55.8]} 7... d5 {[%clk 0:02:49.7]} 8. cxd5 {[%clk 0:02:50.9]}
8... Nxd5 {[%clk 0:02:49.3]} 9. O-O {[%clk 0:02:51.2]} 9... Nc6 {[%clk
0:02:44.5]} 10. Bc4 {[%clk 0:02:45.6]} 10... Nb6 {[%clk 0:02:42.4]} 11. Bb3
{[%clk 0:02:12.7]} 11... Bg4 {[%clk 0:02:33.2]} 12. Be3 {[%clk 0:02:01.1]} 12...
Bxd4 {[%clk 0:01:10.4]} 13. Bxd4 {[%clk 0:01:39]} 13... Bxf3 {[%clk 0:01:10.2]}
14. Qxf3 {[%clk 0:01:39.2]} 14... Qxd4 {[%clk 0:01:09.4]} 15. Rad1 {[%clk
0:01:38.2]} 15... Qb4 {[%clk 0:00:50.7]} 16. Rfe1 {[%clk 0:01:38]} 16... e6
{[%clk 0:00:45.2]} 17. Ne4 {[%clk 0:01:26]} 17... Rad8 {[%clk 0:00:45.1]} 18.
Nf6+ {[%clk 0:01:04.2]} 18... Kg7 {[%clk 0:00:42]} 19. Ng4 {[%clk 0:00:59.5]}
19... f5 {[%clk 0:00:31.6]} 20. Ne3 {[%clk 0:00:47.7]} 20... e5 {[%clk
0:00:21.8]} 21. a3 {[%clk 0:00:47.3]} 21... Qe7 {[%clk 0:00:18.5]} 22. Nd5
{[%clk 0:00:39.9]} 22... Nxd5 {[%clk 0:00:18.2]} 23. Bxd5 {[%clk 0:00:40.4]}
23... e4 {[%clk 0:00:18.2]} 24. Qc3+ {[%clk 0:00:40.5]} 24... Qf6 {[%clk
0:00:17.4]} 25. Qb3 {[%clk 0:00:40.8]} 25... b6 {[%clk 0:00:14.6]} 26. Qa4
{[%clk 0:00:37.4]} 26... Ne5 {[%clk 0:00:10.4]} 27. Qxa7+ {[%clk 0:00:37.1]}
27... Rd7 {[%clk 0:00:10.9]} 28. Qa4 {[%clk 0:00:34.1]} 28... Rfd8 {[%clk
0:00:09.7]} 29. Bb3 {[%clk 0:00:34.1]} 29... Nd3 {[%clk 0:00:10.1]} 30. Rf1
{[%clk 0:00:31.7]} 30... Nc5 {[%clk 0:00:08.8]} 31. Rxd7+ {[%clk 0:00:30]} 31...
Rxd7 {[%clk 0:00:09.7]} 32. Qc4 {[%clk 0:00:29.6]} 32... Qxb2 {[%clk 0:00:08.7]}
33. Qg8+ {[%clk 0:00:29.1]} 33... Kh6 {[%clk 0:00:09.2]} 34. Bc4 {[%clk
0:00:19.2]} 34... Qg7 {[%clk 0:00:08.7]} 35. Qb8 {[%clk 0:00:18.5]} 35... Qf6
{[%clk 0:00:08.5]} 36. Qf4+ {[%clk 0:00:17.1]} 36... Kg7 {[%clk 0:00:08.4]} 37.
Qb8 {[%clk 0:00:17.6]} 37... Rd8 {[%clk 0:00:06.3]} 38. Qc7+ {[%clk 0:00:17]}
38... Rd7 {[%clk 0:00:06.8]} 39. Qb8 {[%clk 0:00:17.2]} 39... h5 {[%clk
0:00:07.2]} 40. h3 {[%clk 0:00:15.5]} 40... h4 {[%clk 0:00:07.3]} 41. Qf4 {[%clk
0:00:15.2]} 41... Qe7 {[%clk 0:00:05.3]} 42. Qb8 {[%clk 0:00:14.4]} 42... Qd6
{[%clk 0:00:03.8]} 43. Qg8+ {[%clk 0:00:14.2]} 43... Kh6 {[%clk 0:00:04]} 44.
Qh8+ {[%clk 0:00:14.6]} 44... Kg5 {[%clk 0:00:04.5]} 45. Qc3 {[%clk 0:00:14.4]}
45... Qd4 {[%clk 0:00:03.7]} 46. Qb4 {[%clk 0:00:14]} 46... Rd6 {[%clk
0:00:02.3]} 47. Rc1 {[%clk 0:00:13.6]} 47... f4 {[%clk 0:00:02.6]} 48. Qb5
{[%clk 0:00:13.2]} 48... e3 {[%clk 0:00:02.8]} 49. fxe3 {[%clk 0:00:13.1]} 49...
Qxe3+ {[%clk 0:00:03.7]} 50. Kh2 {[%clk 0:00:12.5]} 50... Qxc1 {[%clk
0:00:03.8]} 0-1

[Event "Late-Titled-Tuesday-Blitz-January-23-2024"]
[Site "Chess.com"]
[Date "2024.01.23"]
[Round "1"]
[White "Sacbutt"]
[Black "Fonsofan"]
[Result "1-0"]
[WhiteElo "2362"]
[BlackElo "2637"]
[TimeControl "180+1"]
[EndTime "14:08:00 PST"]
[Termination "Sacbutt won on time"]

1. d4 {[%clk 0:03:00.9]} 1... Nf6 {[%clk 0:02:55.5]} 2. c4 {[%clk 0:03:00.6]}
2... e6 {[%clk 0:02:54.3]} 3. Nf3 {[%clk 0:03:00.8]} 3... b6 {[%clk 0:02:54.1]}
4. g3 {[%clk 0:03:01.1]} 4... Bb7 {[%clk 0:02:53.3]} 5. Bg2 {[%clk 0:03:01.2]}
5... Bb4+ {[%clk 0:02:53]} 6. Bd2 {[%clk 0:03:00.9]} 6... Qe7 {[%clk 0:02:50.5]}
7. O-O {[%clk 0:03:00.5]} 7... Bxd2 {[%clk 0:02:50.3]} 8. Qxd2 {[%clk
0:02:58.6]} 8... d6 {[%clk 0:02:50.8]} 9. Nc3 {[%clk 0:02:58.4]} 9... Nbd7
{[%clk 0:02:48.3]} 10. Qc2 {[%clk 0:02:57.3]} 10... c5 {[%clk 0:02:44.7]} 11. e3
{[%clk 0:02:48.8]} 11... O-O {[%clk 0:02:43.9]} 12. b3 {[%clk 0:02:45.9]} 12...
Rac8 {[%clk 0:02:42.2]} 13. Rfe1 {[%clk 0:02:41]} 13... cxd4 {[%clk 0:02:38]}
14. exd4 {[%clk 0:02:37.2]} 14... d5 {[%clk 0:02:37.1]} 15. Ne5 {[%clk
0:02:32.4]} 15... Rc7 {[%clk 0:02:27.6]} 16. Qe2 {[%clk 0:02:14.9]} 16... dxc4
{[%clk 0:02:20.5]} 17. Bxb7 {[%clk 0:02:11.4]} 17... Rxb7 {[%clk 0:02:21.4]} 18.
bxc4 {[%clk 0:02:10.6]} 18... Rc8 {[%clk 0:02:14.9]} 19. Nf3 {[%clk 0:01:50.1]}
19... Qb4 {[%clk 0:01:56.2]} 20. Nb5 {[%clk 0:01:50.1]} 20... a6 {[%clk
0:01:56.7]} 21. Rab1 {[%clk 0:01:49.4]} 21... Qf8 {[%clk 0:01:55.3]} 22. Nc3
{[%clk 0:01:46.9]} 22... Rbc7 {[%clk 0:01:55.7]} 23. Nd2 {[%clk 0:01:44.1]}
23... Qd6 {[%clk 0:01:33.6]} 24. Qe3 {[%clk 0:01:35.5]} 24... Ng4 {[%clk
0:01:32.6]} 25. Qf4 {[%clk 0:01:24.1]} 25... Qxf4 {[%clk 0:01:29.7]} 26. gxf4
{[%clk 0:01:25]} 26... Nh6 {[%clk 0:01:29.9]} 27. Na4 {[%clk 0:01:20]} 27... Rc6
{[%clk 0:01:24.8]} 28. d5 {[%clk 0:01:14.3]} 28... exd5 {[%clk 0:01:25.7]} 29.
cxd5 {[%clk 0:01:14.4]} 29... Rg6+ {[%clk 0:01:22.6]} 30. Kf1 {[%clk 0:01:07.1]}
30... b5 {[%clk 0:01:13.4]} 31. Nb2 {[%clk 0:00:58.4]} 31... Rd6 {[%clk
0:01:11.1]} 32. a4 {[%clk 0:00:53.1]} 32... Rxd5 {[%clk 0:01:08.5]} 33. Nf3
{[%clk 0:00:48.7]} 33... b4 {[%clk 0:00:55.5]} 34. Red1 {[%clk 0:00:46.5]} 34...
Rxd1+ {[%clk 0:00:42.7]} 35. Rxd1 {[%clk 0:00:47.4]} 35... Nf8 {[%clk
0:00:19.2]} 36. Rd4 {[%clk 0:00:46.9]} 36... Rb8 {[%clk 0:00:14.7]} 37. Ne5
{[%clk 0:00:38.3]} 37... Nf5 {[%clk 0:00:14.5]} 38. Rc4 {[%clk 0:00:37.1]} 38...
Ne6 {[%clk 0:00:13.4]} 39. Nc6 {[%clk 0:00:36.1]} 39... Rb7 {[%clk 0:00:10.4]}
40. Nxb4 {[%clk 0:00:34.6]} 40... g6 {[%clk 0:00:09.2]} 41. N2d3 {[%clk
0:00:32.1]} 41... a5 {[%clk 0:00:09.5]} 42. Nd5 {[%clk 0:00:30]} 42... Kg7
{[%clk 0:00:05.7]} 43. Nc5 {[%clk 0:00:27.1]} 43... Rb1+ {[%clk 0:00:05]} 44.
Kg2 {[%clk 0:00:26.4]} 44... Ned4 {[%clk 0:00:05.7]} 45. Ne3 {[%clk 0:00:20.8]}
45... Nh4+ {[%clk 0:00:05.1]} 46. Kg3 {[%clk 0:00:20.3]} 46... Nhf5+ {[%clk
0:00:04.8]} 47. Nxf5+ {[%clk 0:00:20.6]} 47... Nxf5+ {[%clk 0:00:05]} 48. Kg2
{[%clk 0:00:21.1]} 48... Rb2 {[%clk 0:00:04.1]} 49. Kf3 {[%clk 0:00:21.6]} 49...
Kh6 {[%clk 0:00:03.6]} 50. Ne4 {[%clk 0:00:19.9]} 50... Rb3+ {[%clk 0:00:03.3]}
51. Kg2 {[%clk 0:00:19.7]} 51... Nh4+ {[%clk 0:00:03.4]} 52. Kf1 {[%clk
0:00:19.6]} 52... Ra3 {[%clk 0:00:03.3]} 53. Nd6 {[%clk 0:00:18.8]} 53... Nf3
{[%clk 0:00:03.2]} 54. Kg2 {[%clk 0:00:17]} 54... Nh4+ {[%clk 0:00:02.7]} 55.
Kf1 {[%clk 0:00:17.4]} 55... Nf3 {[%clk 0:00:02.7]} 56. Kg2 {[%clk 0:00:17.7]}
56... Nd2 {[%clk 0:00:02.8]} 57. Rd4 {[%clk 0:00:16.9]} 1-0